Cogmind - Beta 17 @@@ ROGUE MODE // 2026.06.23 @ 14:27:21 Player: Skergy Result: Destroyed by as-80429 with Assembled Blade Performance ------------- Evolutions (0) 0 Regions Visited (2) 400 Robots Destroyed (27) 135 Value Destroyed (578) 578 Prototype IDs (3) 60 Alien Tech Used (0) 0 Bonus (5149) 5149 TOTAL SCORE: 6322 Bonus ------- Follower Combat Kills 49 Prayed to X0-1V1 5000 Major X0-1V1 Interference 100 Cogmind --------- Core Integrity 0/125 Matter 290/300 Energy 58/100 System Corruption 7% Temperature Warm (165) Movement Treading (320) Ox2 Location -10/Mines Parts ------- > --- POWER (2) -------- (None) > --- PROPULSION (2) --- Light Treads > --- UTILITY (2) ------ High-capacity Storage Unit > --- WEAPON (2) ------- Spread Laser Spread Laser > --- INVENTORY (20) --- Light Ion Engine Improved Treads Aluminum Leg Aluminum Leg Aluminum Leg Aluminum Leg Wheel Large Storage Unit Medium Matter Pod (100) Seismic Detector Light Armor Plating Hardened Light Armor Plating Hardened Light Armor Plating Mining Laser Peak State ------------ > --- POWER ------------ Ion Engine Light Ion Engine > --- PROPULSION ------- Light Treads Light Treads > --- UTILITY ---------- High-capacity Storage Unit X0-1V1's Piety Tracker > --- WEAPON ----------- Medium Laser Spread Laser > --- INVENTORY -------- Improved Treads Aluminum Leg Aluminum Leg Aluminum Leg Aluminum Leg Wheel Large Storage Unit Medium Matter Pod Seismic Detector Light Armor Plating Hardened Light Armor Plating Hardened Light Armor Plating Spread Laser Spread Laser Mining Laser [Rating: 23] Favorites ----------- Power Light Ion Engine Engine Light Ion Engine Propulsion Light Treads Treads Light Treads Utility X0-1V1's Piety Tracker Device X0-1V1's Piety Tracker Storage High-capacity Storage Unit Weapon Medium Laser Energy Gun Medium Laser Ballistic Gun Assault Rifle Special Weapon Mining Laser Build | -11 -10 -10 ------- Run | Yrd Mat Min Slots Evolved . | . . . Power . | . . . Propulsion . | . . . Utility . | . . . Weapon . | . . . Parts Attached 16 | 7 7 2 Power 2 | 1 1 . Engine 2 | 1 1 . Core . | . . . Reactor . | . . . Propulsion 3 | 2 1 . Treads 3 | 2 1 . Leg . | . . . Wheel . | . . . Hover . | . . . Flight . | . . . Utility 5 | 2 3 . Device 2 | 1 1 . Storage 3 | 1 2 . Processor . | . . . Hackware . | . . . Protection . | . . . Artifact . | . . . Weapon 6 | 2 2 2 Energy Gun 4 | 1 1 2 Energy Cannon . | . . . Ballistic Gun 1 | 1 . . Ballistic Cannon . | . . . Launcher . | . . . Special Weapon 1 | . 1 . Impact Weapon . | . . . Slashing Weapon . | . . . Piercing Weapon . | . . . Special Melee Weapon . | . . . Unidentified Prototypes 1 | . 1 . Parts Lost 8 | . 2 6 Power 2 | . . 2 Propulsion 2 | . 1 1 Utility 1 | . . 1 Weapon 3 | . 1 2 Highest Loss Streak 6 | . 2 6 To Critical Strikes . | . . . Average Backups 11 | 4 10 15 Power . | . . . Propulsion 4 | 2 4 6 Utility 3 | . 3 6 Weapon 2 | 1 1 2 Tool/Special . | . . . Unused Backups 12 | . 1 11 Power 1 | . . 1 Propulsion 6 | . . 6 Utility 4 | . . 4 Weapon 1 | . 1 . Tool/Special . | . . . Average Slot Usage (%) 98 | . 99 97 Engine 18 | . 17 24 Treads 26 | . 26 24 Device 13 | . 13 11 Storage 13 | . 13 12 Energy Gun 17 | . 15 24 Ballistic Gun 8 | . 10 . Peak Build Rating 23 | 7 23 23 Average Rating 15 | 5 15 22 On Entrance 10 | . 7 23 Avg Prop Armor Cover (%) 10 | . 10 . Naked Turns . | . . . Heaviest Build 54 | 13 54 54 Greatest Support 40 | 40 40 40 Greatest Overweight (x) 2 | . 2 1 Average Overweight (x) . | . . 1 Largest Inventory Capacity 20 | 8 20 20 Average Capacity 16 | 7 16 20 Most Carried 16 | 6 15 16 Average Carried 11 | 4 10 15 Final Capacity 20 | 8 20 20 Final Carried 15 | 6 15 14 Class Distribution -------------------- 100% | Mutant Dominant Class ---------------- Mutant | -10/Materials Mutant | -10/Mines Resources | -11 -10 -10 ----------- Run | Yrd Mat Min Matter Collected 761 | 309 410 42 Remotely . | . . . Salvage Created 718 | 139 518 61 Parts 40 | 9 25 6 Haulers Intercepted . | . . . Recyclers Shooed 2 | . 1 1 Parts Field Recycled . | . . . Retrieved Matter . | . . . Parts Self-Destructed . | . . . Prevented . | . . . Parts Restored . | . . . Kills | -11 -10 -10 ------- Run | Yrd Mat Min Combat Hostiles Destroyed 20 | . 14 6 Guns 20 | . 14 6 Classes Destroyed 8 | 3 3 2 Worker 3 | 2 . 1 Tunneler 2 | 2 . . Recycler 1 | 1 . . Watcher 2 | . 2 . Swarmer 7 | . 3 4 Grunt 11 | . 11 . Demolisher 1 | . . 1 Assembled 1 | . . 1 Best Kill Streak 4 | 3 4 3 Combat Bots Only 3 | . 3 2 Max Kills in Single Turn 2 | 1 1 2 Gunslinging 1 | . . 1 Exploded . | . . . Melee . | . . . Uniques/NPCs Destroyed . | . . . Combat | -11 -10 -10 -------- Run | Yrd Mat Min Hostile Shots Fired 101 | . 65 36 Missed 15 | . 7 8 Hits 86 | . 58 28 Melee 3 | . . 3 Projectile 83 | . 58 25 AOE 5 | . . 5 Critical Strikes 2 | . 1 1 Damage Taken 1170 | . 685 485 Core 227 | . 101 126 Absorbed by Shields . | . . . Regen/Repaired (Parts) 106 | . 106 . Core Remaining (%) 100 | 100 . . Volleys Fired 76 | 13 50 13 Largest 2 | 2 2 2 Hottest 130 | 70 115 130 Shots Fired 141 | 26 89 26 Gun 136 | 26 84 26 Cannon . | . . . Launcher . | . . . Special 5 | . 5 . Kinetic 47 | 13 34 . Thermal 94 | 13 55 26 Explosive . | . . . Electromagnetic . | . . . Robot Hit Streak 11 | 4 11 6 Robot Miss Streak 7 | 1 7 6 Penetration Max . | . . . Secondary Targets 4 | . 3 1 Max Gunslinging Chain 1 | . 1 1 Shots Hit Robots 97 | 17 58 22 Core Hits 78 | 6 42 30 Critical Kills . | . . . Critical Parts Destroyed 1 | . 1 . Critical Strikes 10 | 3 5 2 Burn 9 | 3 4 2 Destroy 1 | . 1 . Melee Attacks . | . . . Impact . | . . . Slashing . | . . . Piercing . | . . . Sneak Attacks . | . . . Combat Hostiles . | . . . Follow-up Attacks . | . . . Damage Inflicted 1267 | 220 744 303 Guns 1267 | 220 744 303 Cannons . | . . . Explosions . | . . . Melee . | . . . Ramming . | . . . Kinetic 357 | 97 260 . Thermal 910 | 123 484 303 Explosive . | . . . Electromagnetic . | . . . Impact . | . . . Slashing . | . . . Piercing . | . . . Highest Corruption 7 | . . 7 Average Corruption 7 | . . 7 Corruption Purged . | . . . Corruption Blocked . | . . . Overload Shots . | . . . Overflow Damage . | . . . Projectiles . | . . . Explosions . | . . . Melee . | . . . Knockbacks . | . . . Impact . | . . . Kinetic . | . . . Secondary . | . . . Self-Inflicted Damage . | . . . Shots . | . . . Rammed . | . . . Targets Rammed . | . . . Kicked . | . . . Crushed . | . . . Highest Temperature 331 | 72 331 165 Average Temperature 63 | 27 74 42 Received Heat Transfer 386 | . 330 56 Effects 1 | . 1 . Short Circuit 1 | . 1 . Siege Activations . | . . . Martial Activations . | . . . Shielding Activations . | . . . Robots Disrupted . | . . . Combat Hostiles . | . . . Robots Corrupted . | . . . Combat Hostiles . | . . . Parts Fried . | . . . Impact Corruptions . | . . . Robots Melted . | . . . Combat Hostiles . | . . . Parts Melted 6 | 1 3 2 Heat Transferred 2695 | 592 1421 682 Parts Sabotaged . | . . . Parts Stolen . | . . . Parts Stripped . | . . . Power Chain Reactions . | . . . Alert | -11 -10 -10 ------- Run | Yrd Mat Min Maximum Alert Level . | . . . Low Security (%) 100 | 100 100 100 Level 1 . | . . . Level 2 . | . . . Level 3 . | . . . Level 4 . | . . . Level 5 . | . . . High Security . | . . . Max Security . | . . . Peak Influence 145 | 5 77 145 Initial 13 | . 3 13 Average 27 | 1 20 64 Influence Increases 714 | 25 381 308 Destroy 0b10 Robot/C 520 | . 280 240 Destroy 0b10 Robot/NC 40 | 25 10 5 Destroy Leader 84 | . 54 30 Allied During Kill 33 | . . 33 Successful Hack 21 | . 21 . Destroy Structure 1 | . 1 . Lose Combat Pursuer 15 | . 15 . Influence Decreases 703 | 20 352 331 Entered New Map 23 | . 2 21 Time Decay 506 | 20 296 190 Lost Part 80 | . 20 60 Lost Ally 60 | . . 60 Purge Threat 34 | . 34 . Squads Dispatched 2 | . 2 . Investigation 1 | . 1 . Extermination . | . . . Reinforcement 1 | . 1 . Assault . | . . . Garrison . | . . . Intercept . | . . . Searches Triggered . | . . . Construction Impeded . | . . . Haulers Reinforced . | . . . Active Scanning Responses . | . . . Cargo Convoy Interrupts . | . . . Stealth | -11 -10 -10 --------- Run | Yrd Mat Min Distress Signals 1 | . 1 . Communications Jammed . | . . . Distress Signals . | . . . Times Spotted 40 | . 18 22 Peak Tracking Total 9 | . 3 9 Tactical Retreats 1 | . 1 . Traps | -11 -10 -10 ------- Run | Yrd Mat Min Traps Triggered 1 | . 1 . Indirectly . | . . . Trap Hack Attempts . | . . . Triggered . | . . . Disarmed . | . . . Reprogrammed . | . . . Reused . | . . . Traps Extracted . | . . . Installed . | . . . Triggered . | . . . Machines | -11 -10 -10 ---------- Run | Yrd Mat Min Machines Disabled . | . . . Max in Single Turn . | . . . Machines Repaired . | . . . Machines Dismantled . | . . . Machines Sabotaged . | . . . Overloaded Fab Kills . | . . . Hacking | -11 -10 -10 --------- Run | Yrd Mat Min Machines Accessed 5 | . 5 . Terminals 3 | . 3 . Fabricators . | . . . Repair Stations 1 | . 1 . Recycling Units 1 | . 1 . Scanalyzers . | . . . Garrison Access . | . . . Total Hacks 18 | . 18 . Successful 12 | . 12 . Failed 6 | . 6 . Catastrophic 1 | . 1 . Database Lockouts . | . . . Manual 17 | . 17 . Terminals 10 | . 10 . Fabricators . | . . . Repair Stations 3 | . 3 . Recycling Units 5 | . 5 . Scanalyzers . | . . . Garrison Access . | . . . Terminal Hacks 5 | . 5 . Robot Analysis 2 | . 2 . Prototype ID Bank 1 | . 1 . Unreport Threat 1 | . 1 . Zone Layout 1 | . 1 . Fabricator Hacks . | . . . Repair Station Hacks 2 | . 2 . Scan Component 1 | . 1 . Repair 1 | . 1 . Recycling Unit Hacks . | . . . Scanalyzer . | . . . Garrison Access Hacks . | . . . Unauthorized Hacks 5 | . 5 . Terminals 3 | . 3 . Botnet 2 | . 2 . Operators 1 | . 1 . Fabricators . | . . . Repair Stations . | . . . Recycling Units 2 | . 2 . Recyclers 1 | . 1 . Mask 1 | . 1 . Scanalyzers . | . . . Garrison Access . | . . . Data Cores Recovered . | . . . Used . | . . . Hacking Detections 5 | . 5 . Full Trace Events . | . . . Feedback Events . | . . . Feedback Blocked . | . . . Robot Schematics Acquired . | . . . Robots Built . | . . . Authchips . | . . . Time . | . . . Total Robot Build Rating . | . . . Part Schematics Acquired . | . . . Parts Built . | . . . Authchips . | . . . Time . | . . . Total Part Build Rating . | . . . Part Studies Acquired . | . . . Parts Repaired 1 | . 1 . Time 36 | . 36 . Parts Recycled . | . . . Recycled Matter . | . . . Retrieved Matter . | . . . Retrieved Components . | . . . Parts Scanalyzed . | . . . Part Schematics Acquired . | . . . Parts Damaged . | . . . Bothacking | -11 -10 -10 ------------ Run | Yrd Mat Min Used RIF Installer . | . . . Robots Hacked . | . . . Non-combat . | . . . Combat . | . . . Robot Hacks Applied . | . . . Relay Couplers Released . | . . . Fabnet Peak Effective % . | . . . Robots Rewired . | . . . Allies Hacked . | . . . Hacks Repelled . | . . . Allies | -11 -10 -10 -------- Run | Yrd Mat Min Total Allies 3 | . . 3 Largest Group 3 | . . 3 Highest-Rated Group 40 | . . 40 Highest-Rated Ally 16 | . . 16 Total Orders . | . . . Ally Attacks 24 | . . 24 Total Damage 265 | . . 265 Kills 7 | . . 7 Allies Corrupted . | . . . Allies Melted . | . . . X0-1V1 Amusement Gains 95 | . 4 91 Good Acts 8 | . 7 1 Bad Acts 4 | . 3 1 Intel | -11 -10 -10 ------- Run | Yrd Mat Min Active Infowar (turns) 679 | 70 609 . Seismic 679 | 70 609 . Robot Analysis Total 2 | . 2 . Derelict Logs Recovered 2 | . . 2 Drone Launches . | . . . Drone Recoveries . | . . . Exploration | -11 -10 -10 ------------- Run | Yrd Mat Min Turns Passed 1981 | 150 1450 381 Spaces Moved 659 | 61 456 142 Core 2 | 2 . . Treads 657 | 59 456 142 Legs . | . . . Wheels . | . . . Hover . | . . . Flight . | . . . Fastest Speed 50 | 50 160 240 Average Speed 201 | 156 195 240 Slowest Speed 320 | 160 320 240 Overloaded Moves . | . . . Propulsion Burnouts . | . . . Robots Hopped . | . . . Potential Cave-ins . | . . . Cave-ins Triggered . | . . . Exploration Rate (%) 39 | 4 69 45 Regions Visited 2 Branch Regions 1 Pre-discovered Areas . | . . . Known Exits Taken . | . . . Unknown Exits Taken 2 | 1 1 . Scrap Searched 1 | . . 1 Spaces Dug 1 | . 1 . Terrain Destroyed 2 | . 2 . Melee . | . . . Projectile 2 | . 2 . AOE . | . . . Terrain Rammed . | . . . Walls Destroyed . | . . . Machines Disabled . | . . . Actions | -11 -10 -10 --------- Run | Yrd Mat Min Total 1158 | 86 914 158 Wait 385 | . 385 . Move 657 | 60 455 142 Hop . | . . . Pick Up 17 | 6 10 1 Fast Attach 10 | 7 3 . Attach 5 | . 3 2 Detach 1 | . 1 . Swap 5 | . 5 . Drop 2 | . 2 . Fire 76 | 13 50 13 Melee . | . . . Ram . | . . . Kick . | . . . Crush . | . . . Escape Stasis . | . . . Rewire . | . . . Trap . | . . . Miscellaneous . | . . . Route ------- -11/Scrapyard -10/Materials (discovered 4 exits: *Mat x2 / [*Min] / [*Sub]) -10/Mines (discovered 1 exit: *Mat) History --------- Turn | Location | Event 6 | -11/Scrapyard | Discovered new exit (range 15) 151 | -11/Scrapyard | Entered Materials 304 | -10/Materials | Build established: Mutant 558 | -10/Materials | Discovered new exit (range 10) 760 | -10/Materials | Prayed at D.C.S.S. Altar Unit 823 | -10/Materials | Discovered new exit (range 15) 916 | -10/Materials | Identified exit to Materials 916 | -10/Materials | X0-1V1 revealed exit location to -9/Materials 993 | -10/Materials | Ranged accuracy permanently improved by X0-1V1 (+5%) 1181 | -10/Materials | X0-1V1 mutated your Weapon slot to Power slot 1194 | -10/Materials | Weapon slot count permanently improved by X0-1V1 (+1) 1381 | -10/Materials | Repaired Broken Lgt. Treads 1461 | -10/Materials | Heat dissipation permanently improved by X0-1V1 (+15) 1589 | -10/Materials | Discovered new exit (range 6) 1601 | -10/Materials | Entered Mines 1640 | -10/Mines | Assisted by bots powering up and referring to "LRC-V3" 1820 | -10/Mines | Learned Materials terminal intel 1880 | -10/Mines | Learned Materials machine intel 1948 | -10/Mines | Assembled infested the area 1950 | -10/Mines | Discovered exit to Materials (range 12) 1976 | -10/Mines | Core integrity fell below 50% 1982 | -10/Mines | Core integrity fell below 20% 1982 | -10/Mines | Destroyed by as-80429 with Assembled Blade Last Messages --------------- 01974_ K-01 Serf destroyed. 01976_ The unstable cave ceiling collapses. 01976_ X0-1V1: "Your inner air conditioner seems to have fallen into disrepair." (-20 heat dissipation) 01976_ U-05 Engineer lays Concrete. 01977_ U-05 Engineer builds a Wall. 01977_ as-53879 destroyed. 01978_ Ion Engine destroyed. 01978_ X0-1V1's Piety Tracker destroyed. 01978_ X0-1V1 is mildly amused. 01978_ System corrupted by crushing effect (+5). 01978_ System corrupted by crushing effect (+2). 01978_ as-82629 destroyed. 01979_ X0-1V1 is amused. 01979_ Spread Laser destroyed. 01981_ The unstable cave ceiling collapses. 01981_ U-05 Engineer builds a Wall. 01982_ The unstable cave ceiling collapses. 01982_ X0-1V1 chortles! Map ----- +----------------------------------------------------+ | | | | | | | | | | | | | | | | | | | | | | | ?????????????????????????????????????????????????? | | ?????????????????????????????????????????????????? | | ?????????????????????##????###???????????????????? | | ????????????????????## ??? ???????????????????? | | ???????????????????? ???????????????????? | | ????????????????????? """ ????????????????????? | | ????????????????????? """ ????????????????????? | | ??????????????????????aa""" #????????????????????? | | ?????????????????????? a #????????????????????? | | ??????????????????????# #?????????????????#### | | ?????????????????????## a ##???????????????## | | ?????????????????????# % ##??????????????# | | ?????????????????????# #???????????#### | | ?????????????????????## aa #???????????# | | ?????????????????????# @ #????????????# ## | | ????????????????????# ! # #??????????# ### | | ???????????# ## #= #?????????# #?## | | ???????????# < % #?????????# #??# | | ???????????# ### = # ##????####?# #?? | | ??????????????? ???# % #???## ### #?? | | ??????????????##?????# ##### ## # # | | ?????????????????????## ## ## ## | | ??????????????????????## u #? | | ???????????????????????# ##### #? | | ?????????????????? ##### ##????###? | | ?????????????????####### ????# #####????????? | | ??????????????????????# ????# ##????????????? | | ??????????????????????# ????## #?????????????? | | ??????????????????????### ?????# #?????????????? | | ????????????????????????# ?????# #?????????????? | | ????????????????????????# ????? ?????????????? | | ???????????????????????? ????# ????????????? | | ????????????????????????#?????# ???????????? | | ??????????????????????????????## ???????????? | | ???????????????????????????????# ??????????? | | ???????????????????????????????## ???????????? | | ?????????????????????????????????# ????????????? | | ?????????????????????????????????? ?????????????? | | ????????????????????????????????????????????? | +----------------------------------------------------+ Best States ------------- Heat Dissipation 40 Energy Generation 15 Energy Capacity 275 Matter Stores 300 Matter Capacity 300 Sight Range 18 Terrain Scan Density 10 Evasion (%) 40 Recoil Reduction 2 Item Schematics ----------------- None Robot Schematics ------------------ None Fabricated ------------ Nothing Repaired ---------- Lgt. Treads | 24% | -10/Materials | Broken Studied --------- None Alien Tech Used ----------------- None Achievements -------------- None Challenges ------------ None Game ------ Seed DirtyLobotomyShooter Manual? 0 Play Time 00:17:35 Cumulative 147.4 hours Start 2026.06.23 @ 14:09:41 End 2026.06.23 @ 14:27:21 Sessions 1 Manual Loads 0 Difficulty Rogue Special Mode None Game No. 161 Rogue 161 Adventurer 0 Explorer 0 Win Type - Total 4 Types 4/0/0/0/0/0/0/0/0/0 Lore% 71 Gallery% 55 Achievement% 44 Wizard Run 0 Options --------- Layout 1 ASCII 0 Keyboard 1 Movement Vi Keybinds 0 Fullscreen 2 Font 24/Terminus Map View 50x35 Zoom Use 0% Tactical HUD 1 Map Filters NONE Filters NONE Steam 1 RUN: d3c5cab8-10f2-4252-9cf5-df9a3e05b2fd